bitfinex-derivatives/quotes_SOLF0:USTF0_20250113
["timestamp","ask_amount","ask_price","bid_price","bid_amount"]
[1736757082609,7.7342,181.32,181.2,2.7611]
[1736757082998,1.6142,181.32,181.2,2.7611]
[1736757083217,1.6142,181.32,181.21,2.7609]
[1736757083406,2.7602,181.27,181.21,2.7609]
[1736757083606,2.7602,181.27,181.18,3.2701]
[1736757085204,2.7602,181.27,181.22,2.7608]
[1736757086806,2.7599,181.28,181.22,2.7608]
[1736757087105,1.599,181.33,181.2,21.08205736]
[1736757087311,2.7591,181.34,181.26,13.15685382]
[1736757087711,14.85725382,181.38,181.26,13.15685382]
[1736757087911,1.7004,181.38,181.29,13.15685382]
[1736757088112,105.12261608,181.41,181.29,13.15685382]
[1736757088711,13.15685382,181.35,181.26,13.15685382]
[1736757089510,15.91575382,181.35,181.27,2.76]
[1736757089822,2.7589,181.35,181.26,13.15685382]
[1736757090507,2.7589,181.35,181.28,2.7599]
[1736757092212,13.15685382,181.32,181.21,1.6776]
[1736757092906,16.37915382,181.32,181.21,1.6776]
[1736757093109,2.7601,181.27,181.21,4.4385]
[1736757093309,13.15685382,181.26,181.16,1.5696]
[1736757093913,2.7607,181.24,181.17,2.7615]
[1736757094818,13.15685382,181.26,181.15,13.15685382]
[1736757095413,2.7604,181.26,181.2,2.7611]
[1736757095609,16.57905382,181.32,181.18,13.15685382]
[1736757095813,0.83533312,181.31,181.18,21.06486144]
[1736757096015,2.7599,181.29,181.18,21.06486144]
[1736757096214,3.4222,181.32,181.18,21.06486144]
[1736757096409,2.7598,181.29,181.18,21.06486144]
[1736757096912,3.2223,181.32,181.21,21.06486144]
[1736757097110,2.7596,181.31,181.22,1.5953]
[1736757097311,6.08,181.36,181.25,2.7602]
[1736757097520,2.7594,181.32,181.24,21.06486144]
[1736757097819,6.08,181.36,181.24,21.06486144]
[1736757098113,2.759,181.35,181.28,2.7599]
[1736757098316,24.28446144,181.37,181.22,4.8195]
[1736757098519,1.03507803,181.36,181.22,4.8195]
[1736757098715,2.7597,181.3,181.22,4.8195]
[1736757099121,2.7597,181.3,181.22,7.5803]
[1736757099316,2.7595,181.31,181.22,4.8195]
[1736757100119,2.7593,181.32,181.24,21.06486144]
[1736757100516,2.7595,181.31,181.24,23.82536144]
[1736757103619,2.7596,181.3,181.24,21.06486144]
[1736757103829,0.2003,181.36,181.22,3.2058]
[1736757104023,0.83447297,181.35,181.22,3.2058]
[1736757104425,0.83445852,181.34,181.22,3.2058]
[1736757104625,0.83445852,181.35,181.22,3.2058]
[1736757104821,2.7599,181.29,181.22,5.9666]
[1736757105015,8.01717599,181.36,181.22,4.3561]
[1736757105218,0.83448806,181.35,181.22,1.5953]
[1736757105416,2.76,181.28,181.22,1.5953]
[1736757106119,6.06,181.31,181.19,2.7613]
[1736757106319,3.2346,181.3,181.17,21.06486144]
[1736757106727,2.7602,181.27,181.17,21.06486144]
[1736757106926,3.2346,181.3,181.17,21.06486144]
[1736757107629,2.7605,181.25,181.17,21.06486144]
[1736757108021,3.2346,181.3,181.17,21.06486144]
[1736757108218,2.7601,181.27,181.21,2.7609]
[1736757108728,2.7601,181.27,181.2,21.06486144]
[1736757109027,2.7601,181.27,181.2,23.82596144]
[1736757109420,2.7601,181.27,181.2,21.06486144]
[1736757109627,2.7599,181.28,181.21,2.7608]
[1736757109828,6.06,181.32,181.2,21.06486144]
[1736757110024,2.7598,181.29,181.23,21.06486144]
[1736757110226,9.3451,181.35,181.23,21.06486144]
[1736757110527,195.27374253,181.4,181.26,21.06486144]
[1736757110718,0.83464141,181.37,181.27,1.6312]
[1736757111219,0.83464141,181.36,181.29,21.06486144]
[1736757111422,7.52782467,181.39,181.29,21.06486144]
[1736757111624,6.06,181.4,181.29,21.06486144]
[1736757111923,0.83472738,181.39,181.29,21.06486144]
[1736757112319,2.759,181.35,181.29,21.06486144]
[1736757113536,6.06,181.4,181.27,1.6312]
[1736757113740,0.83459796,181.39,181.27,1.6312]
[1736757113940,0.83459796,181.39,181.26,21.06486144]
[1736757113941,21.06486144,181.38,181.23,21.06486144]
[1736757114239,21.06486144,181.35,181.21,1.6341]
[1736757114435,2.40866866,181.34,181.21,1.6341]
[1736757114641,1.5744,181.34,181.21,4.3949]
[1736757115142,1.5744,181.34,181.21,1.6341]
[1736757115543,1.5744,181.34,181.22,2.7607]
[1736757115840,1.5744,181.34,181.23,21.06486144]
[1736757116040,96.25726226,181.4,181.26,21.06486144]
[1736757116241,0.83418191,181.39,181.26,21.06486144]
[1736757116643,8.645012,181.39,181.26,21.06486144]
[1736757116844,2.7591,181.34,181.27,2.7601]
[1736757117243,7.7175,181.4,181.26,21.06486144]
[1736757117445,2.7592,181.33,181.26,23.82506144]
[1736757118345,6.06,181.39,181.27,2.76]
[1736757119647,6.06,181.39,181.26,21.06486144]
[1736757119648,2.7596,181.3,181.26,21.06486144]
[1736757119839,6.06,181.39,181.23,21.06486144]
[1736757120041,21.06486144,181.36,181.22,3.2274]
[1736757120237,2.76,181.28,181.22,3.2274]
[1736757120743,21.06486144,181.36,181.22,3.2274]
[1736757120946,21.06486144,181.33,181.17,43.97122587]
[1736757121163,3.99405397,181.32,181.17,43.97122587]
[1736757121345,21.06486144,181.3,181.16,1.6845]
[1736757121543,2.7612,181.2,181.16,1.6845]
[1736757122146,2.7614,181.19,181.14,3.64315]
[1736757122347,3.1597,181.32,181.14,3.64315]
[1736757122348,6.06,181.23,181.14,3.64315]
[1736757122743,9.3388,181.23,181.14,3.64315]
[1736757123347,2.7615,181.18,181.14,3.64315]
[1736757123858,2.7613,181.2,181.14,3.64315]
[1736757124051,9.3388,181.23,181.14,3.64315]
[1736757124254,6.06,181.23,181.14,24.70801144]
[1736757124453,6.06,181.23,181.14,3.64315]
[1736757125555,2.7615,181.18,181.14,3.64315]
[1736757126057,6.06,181.23,181.14,3.64315]
[1736757126252,1.5458,181.22,181.14,3.64315]
[1736757126446,2.7618,181.16,181.14,3.64315]
[1736757126851,1.5458,181.22,181.14,3.64315]
[1736757127055,2.7616,181.17,181.14,3.64315]
[1736757127264,1.5458,181.22,181.14,3.64315]
[1736757128056,2.7618,181.16,181.14,3.64315]
[1736757128856,2.7615,181.18,181.14,3.64315]
[1736757129458,2.7616,181.17,181.14,3.64315]
[1736757129953,2.7619,181.15,181.14,3.64315]
[1736757130456,1.5458,181.22,181.14,3.64315]
[1736757131755,2.7616,181.18,181.14,3.64315]
[1736757131956,0.2017,181.26,181.14,24.70801144]
[1736757132261,1.6852,181.28,181.14,24.70801144]
[1736757132551,6.89432451,181.27,181.15,1.5762]
[1736757132753,6.06,181.27,181.15,1.5762]
[1736757132950,2.7609,181.22,181.15,4.3381]
[1736757133255,6.06,181.27,181.15,1.5762]
[1736757133450,0.83428917,181.26,181.14,24.70801144]
[1736757133654,2.7616,181.18,181.14,3.64315]
[1736757134348,27.12486144,181.27,181.14,3.64315]
[1736757134554,21.06486144,181.24,181.14,3.64315]
[1736757134751,0.83402435,181.23,181.14,3.64315]
[1736757134951,2.7619,181.15,181.14,3.64315]
[1736757135156,21.06486144,181.24,181.14,3.64315]
[1736757135157,6.06,181.26,181.14,3.64315]
[1736757135358,6.06,181.26,181.17,21.06486144]
[1736757135558,2.761,181.22,181.17,21.06486144]
[1736757136560,6.06,181.26,181.17,21.06486144]
[1736757137061,6.06,181.26,181.14,24.70801144]
[1736757137256,0.8339388,181.25,181.14,24.70801144]
[1736757137561,2.7609,181.22,181.14,3.64315]
[1736757137751,27.12486144,181.26,181.14,3.64315]
[1736757138062,0.83390064,181.25,181.14,3.64315]
[1736757138457,2.7617,181.17,181.14,3.64315]
[1736757140056,27.12486144,181.26,181.14,3.64315]
[1736757140261,2.7617,181.16,181.14,3.64315]
[1736757141459,6.06,181.26,181.14,24.70801144]
[1736757141663,0.83407423,181.25,181.14,24.70801144]
[1736757142059,2.7615,181.18,181.14,24.70801144]
[1736757142861,27.12486144,181.26,181.14,3.64315]
[1736757143061,0.83397147,181.25,181.14,3.64315]
[1736757143361,2.7618,181.16,181.14,3.64315]
[1736757145263,2.7619,181.15,181.14,3.64315]
[1736757157062,90.19726226,181.23,181.14,3.64315]
[1736757157268,0.83362326,181.22,181.14,16.82228596]
[1736757157470,2.7609,181.22,181.17,13.17913596]
[1736757157668,90.19726226,181.23,181.17,13.17913596]
[1736757157873,103.37639822,181.28,181.2,13.17913596]
[1736757158064,0.83361849,181.27,181.2,13.17913596]
[1736757158263,0.83361849,181.27,181.17,2.7615]
[1736757158572,90.19726226,181.28,181.2,13.17913596]
[1736757158772,90.19726226,181.32,181.2,15.94023596]
[1736757158967,6.89373623,181.31,181.2,15.94023596]
[1736757159167,96.25726226,181.32,181.2,15.94023596]
[1736757159868,2.7601,181.28,181.2,15.94023596]
[1736757161076,2.7596,181.3,181.23,13.17913596]
[1736757161372,6.06,181.33,181.24,5.0912]
[1736757162569,53.34147453,181.35,181.24,5.0912]
[1736757162875,6.06,181.34,181.24,5.0912]
[1736757163078,2.7597,181.3,181.24,5.0912]
[1736757163276,6.06,181.34,181.24,5.0912]
[1736757164672,2.7598,181.29,181.24,5.0912]
[1736757168479,2.7604,181.25,181.24,1.7019]
[1736757169074,2.7606,181.24,181.18,3.3041]
[1736757169280,2.7606,181.24,181.19,1.6241]
[1736757170480,21.05428532,181.32,181.19,1.6241]
[1736757170681,21.05428532,181.29,181.14,24.69743532]
[1736757170979,21.05428532,181.26,181.14,3.64315]
[1736757171176,6.89329071,181.25,181.14,3.64315]
[1736757171482,0.83327802,181.24,181.14,3.64315]
[1736757171782,21.05428532,181.2,181.14,3.64315]
[1736757172278,3.99166831,181.19,181.06,1.5609]
[1736757172475,3.1586,181.19,181.06,1.5609]
[1736757172677,0.83306573,181.18,181.06,1.5609]
[1736757172869,6.06,181.17,181.06,1.5609]
[1736757173470,27.11428532,181.17,181.05,1.6363]
[1736757173679,21.05428532,181.14,181.0,1.6307]
[1736757174676,0.83287335,181.13,181.0,1.6307]
[1736757174880,0.83287223,181.13,181.0,1.6307]
[1736757175180,2.7632,181.07,181.0,1.6307]
[1736757178279,6.06,181.1,181.0,1.6307]
[1736757178485,2.7627,181.1,181.02,2.7638]
[1736757178788,6.06,181.12,181.02,21.05428532]
[1736757178983,2.763,181.08,181.02,21.05428532]
[1736757179882,2.7627,181.1,181.02,23.81808532]
[1736757180085,6.06,181.12,181.02,23.81808532]
[1736757180481,2.7632,181.07,181.0,1.6307]
[1736757180680,27.11428532,181.12,180.99,1.6363]
[1736757180980,2.7646,180.98,180.95,1.6211]
[1736757181182,2.7646,180.98,180.93,1.6506]
[1736757181577,6.06,181.03,180.93,1.6506]
[1736757181578,2.7647,180.97,180.93,1.6506]
[1736757181774,6.06,181.03,180.93,1.6506]
[1736757182185,2.7647,180.97,180.93,1.6506]
[1736757182882,6.06,181.03,180.91,1.6897]
[1736757182883,2.7648,180.96,180.91,1.6897]
[1736757183083,6.06,181.03,180.91,1.6897]
[1736757183084,21.05428532,181.01,180.91,1.6897]
[1736757183290,2.7652,180.94,180.91,1.6897]
[1736757183883,21.05428532,181.01,180.91,1.6897]
[1736757184080,1.5951,181.02,180.91,1.6897]
[1736757184391,2.7648,180.97,180.89,21.05428532]
[1736757184586,2.7648,180.97,180.92,21.05428532]
[1736757184890,2.7648,180.96,180.92,21.05428532]
[1736757185385,1.5951,181.02,180.92,21.05428532]
[1736757186488,1.5951,181.02,180.89,22.59958532]
[1736757186891,21.88690551,181.01,180.89,1.5453]
[1736757187086,21.05428532,181.01,180.89,1.5453]
[1736757187286,2.7651,180.94,180.89,1.5453]
[1736757188080,21.05428532,181.01,180.86,21.05428532]
[1736757188287,2.7655,180.92,180.86,21.05428532]
[1736757188682,2.7651,180.94,180.86,21.05428532]
[1736757190091,2.7654,180.92,180.86,21.05428532]
[1736757190392,6.06,180.95,180.86,21.05428532]
[1736757190889,2.7657,180.91,180.86,21.05428532]
[1736757191385,2.766,180.88,180.85,1.6177]
[1736757191590,2.766,180.88,180.83,21.05428532]
[1736757191786,27.11428532,180.95,180.8,21.05428532]
[1736757191989,2.7664,180.86,180.8,22.73378532]
[1736757193088,2.7665,180.85,180.8,22.73378532]
[1736757193686,3.1434,180.94,180.8,1.6795]
[1736757193882,3.1434,180.94,180.79,24.27098532]
[1736757194188,3.1434,180.94,180.8,1.5534]
[1736757194688,21.05428532,180.92,180.8,1.5534]
[1736757195286,21.05428532,180.89,180.76,21.05428532]
[1736757195483,21.05428532,180.89,180.74,3.2571]
[1736757195690,21.05428532,180.86,180.74,1.5534]
[1736757195893,9.2267,180.85,180.7,1.7037]
[1736757196088,9.2267,180.85,180.7,3.4061]
[1736757196686,9.2267,180.85,180.72,21.05428532]
[1736757196882,2.7669,180.82,180.75,21.05428532]
[1736757197487,2.7664,180.86,180.78,21.05428532]
[1736757197694,6.06,180.88,180.79,3.3375]
[1736757197988,6.06,180.88,180.79,4.906]
[1736757198192,2.7663,180.87,180.79,7.6733]
[1736757198385,6.06,180.88,180.79,4.906]
[1736757198894,6.06,180.88,180.81,21.05428532]
[1736757199093,6.06,180.88,180.84,21.05428532]
[1736757199985,6.06,180.88,180.79,4.906]
[1736757200691,2.7664,180.86,180.79,4.906]
[1736757200891,6.06,180.88,180.79,4.906]
[1736757201394,2.7666,180.84,180.79,4.906]
[1736757201694,6.06,180.88,180.79,4.906]
[1736757201896,2.7669,180.83,180.79,4.906]
[1736757203491,6.06,180.88,180.79,1.7024]
[1736757203691,6.06,180.88,180.75,21.05428532]
[1736757203897,3.3429,180.87,180.75,21.05428532]
[1736757204298,21.05428532,180.86,180.73,4.9429]
[1736757204593,21.05428532,180.86,180.73,3.2636]
[1736757204899,2.7677,180.77,180.73,3.2636]
[1736757205103,3.3429,180.87,180.73,3.2636]
[1736757205298,2.7668,180.83,180.76,2.7678]
[1736757205500,6.08,180.88,180.78,21.05428532]
[1736757205799,8.846,180.88,180.8,2.7672]
[1736757205993,8.846,180.88,180.81,22.72088532]
[1736757206189,6.08,180.91,180.81,22.72088532]
[1736757206394,2.7659,180.89,180.82,2.7669]
[1736757206597,2.7659,180.89,180.82,1.6486]
[1736757206791,6.08,180.91,180.82,1.6486]
[1736757208294,2.7659,180.89,180.82,4.4155]
[1736757208500,6.08,180.93,180.82,3.2226]
[1736757208694,3.3705,180.97,180.84,21.05428532]
[1736757208894,2.7655,180.92,180.84,23.82078532]
[1736757209291,2.7656,180.91,180.84,21.05428532]
[1736757209496,6.08,180.96,180.82,3.2226]
[1736757210698,6.2844,180.96,180.82,3.2226]
[1736757211600,6.08,180.96,180.83,2.7667]
[1736757212098,6.06,180.95,180.82,5.9895]
[1736757212299,6.06,180.95,180.82,3.2226]
[1736757212502,2.7662,180.87,180.82,3.2226]
[1736757212898,6.06,180.95,180.82,3.2226]
[1736757213096,2.766,180.88,180.82,3.2226]
[1736757213996,6.06,180.95,180.81,1.6666]
[1736757213997,21.05428532,180.92,180.81,1.6666]
[1736757214194,6.06,180.95,180.74,7.63545481]
[1736757214195,21.05428532,180.89,180.75,3.2765]
[1736757214400,3.1469,180.88,180.75,4.9885]
[1736757214602,6.06,180.87,180.75,4.9885]
[1736757214998,2.7673,180.8,180.75,4.9885]
[1736757216302,2.7677,180.77,180.7,2.7687]
[1736757216500,6.08,180.79,180.69,1.712]
[1736757216905,2.7682,180.74,180.69,1.712]
[1736757218201,6.08,180.79,180.71,21.05428532]
[1736757219403,2.7672,180.8,180.73,2.7683]
[1736757219797,2.7672,180.81,180.74,2.7681]
[1736757219995,6.08,180.84,180.71,21.05428532]
[1736757220605,2.7672,180.8,180.73,2.7683]
[1736757221507,2.7672,180.8,180.74,4.4349]
[1736757221700,6.08,180.84,180.74,22.72108532]
[1736757221896,6.08,180.84,180.77,21.05428532]
[1736757222100,6.08,180.91,180.78,3.2648]
[1736757222296,2.7661,180.88,180.78,3.2648]
[1736757222508,6.08,180.91,180.78,3.2648]
[1736757222801,2.766,180.88,180.8,21.05428532]
[1736757223107,6.08,180.91,180.83,21.05428532]
[1736757223795,21.05428532,180.98,180.83,21.05428532]
[1736757223996,6.08,180.97,180.84,1.7158]
[1736757224505,2.7657,180.9,180.84,1.7158]
[1736757224701,6.08,180.97,180.84,1.7158]
[1736757224903,2.7661,180.88,180.84,1.7158]
[1736757226199,2.7662,180.87,180.84,1.7158]
[1736757226507,21.05428532,180.94,180.84,1.7158]
[1736757226901,2.7656,180.91,180.84,1.7158]
[1736757227101,21.05428532,180.94,180.84,1.7158]
[1736757227503,2.766,180.89,180.84,1.7158]
[1736757229405,2.7661,180.88,180.84,1.7158]
[1736757229607,21.05428532,180.94,180.8,21.05428532]
[1736757229809,21.05428532,180.94,180.78,3.2648]
[1736757230307,2.7664,180.86,180.78,3.2648]
[1736757230606,21.05428532,180.94,180.79,2.7673]
[1736757230802,21.05428532,180.94,180.78,3.2648]
[1736757231000,2.7661,180.88,180.78,3.2648]
[1736757231204,21.05428532,180.94,180.8,21.05428532]
[1736757231407,21.05428532,180.94,180.83,2.7668]
[1736757231607,2.7657,180.9,180.83,23.82108532]
[1736757233610,27.11428532,180.94,180.8,21.05428532]
[1736757234309,27.11428532,180.94,180.81,2.767]
[1736757234502,27.11428532,180.94,180.8,21.05428532]
[1736757234811,2.7655,180.92,180.83,21.05428532]
[1736757235005,6.06,180.95,180.83,21.05428532]
[1736757236410,21.05428532,180.94,180.78,3.2648]
[1736757236611,2.7665,180.85,180.78,6.0322]
[1736757236815,21.05428532,180.94,180.78,3.2648]
[1736757237017,0.83394113,180.93,180.78,3.2648]
[1736757237207,2.7663,180.87,180.79,2.7673]
[1736757238410,21.05428532,180.94,180.81,2.767]
[1736757238608,21.05428532,180.94,180.8,21.05428532]
[1736757238807,6.06,180.95,180.83,21.05428532]
[1736757239013,6.06,180.95,180.84,2.7665]
[1736757239811,2.7654,180.92,180.84,2.7665]
[1736757240911,6.06,180.95,180.84,2.7665]
[1736757241317,2.7656,180.91,180.84,2.7665]
[1736757241819,6.06,180.95,180.8,21.05428532]
[1736757242017,21.05428532,180.94,180.8,21.05428532]
[1736757242415,2.7663,180.86,180.8,23.82148532]
[1736757244428,2.7666,180.85,180.79,2.7674]
[1736757245125,2.7666,180.85,180.78,3.2648]
[1736757245126,21.05428532,180.91,180.78,3.2648]
[1736757245330,4.13904798,180.9,180.78,3.2648]
[1736757245516,0.83459533,180.89,180.78,3.2648]
[1736757245717,21.05428532,180.88,180.78,3.2648]
[1736757245923,21.05428532,180.88,180.78,1.559]
[1736757245924,6.06,180.87,180.78,1.559]
[1736757246230,6.06,180.87,180.72,4.3339]
[1736757246231,2.7675,180.79,180.72,4.3339]
[1736757246525,21.05428532,180.85,180.72,6.0075]
[1736757246730,2.7674,180.79,180.72,6.0075]
[1736757247029,6.06,180.87,180.72,3.2391]
[1736757247217,2.7666,180.84,180.74,21.05428532]
[1736757247422,6.06,180.87,180.77,21.05428532]
[1736757248023,2.7663,180.86,180.8,2.7672]
[1736757248228,96.25726226,180.93,180.81,3.1376]
[1736757248730,2.766,180.89,180.83,2.7667]
[1736757249427,21.05428532,180.91,180.81,1.5721]
[1736757249922,0.83506976,180.9,180.74,22.74138532]
[1736757250122,0.83506976,180.9,180.75,1.5721]
[1736757250521,2.7668,180.83,180.76,2.7678]
[1736757250721,21.05428532,180.91,180.75,1.5721]
[1736757251030,0.83504379,180.9,180.75,1.5721]
[1736757251227,2.7666,180.85,180.75,1.5721]
[1736757251427,2.7666,180.85,180.77,21.05428532]
[1736757251931,2.7666,180.85,180.78,2.7675]
[1736757252129,2.7663,180.87,180.77,21.05428532]
[1736757252329,2.7663,180.87,180.8,2.7671]
[1736757252531,6.06,180.93,180.77,21.05428532]
[1736757252532,21.05428532,180.94,180.77,21.05428532]
[1736757252725,6.06,180.92,180.77,21.05428532]
[1736757252930,2.7661,180.88,180.81,2.767]
[1736757253128,6.06,180.92,180.81,2.767]
[1736757253328,6.06,180.92,180.77,21.05428532]
[1736757253525,2.7668,180.83,180.77,21.05428532]
[1736757253726,2.7668,180.83,180.75,1.5721]
[1736757254026,2.7663,180.87,180.76,2.7678]
[1736757254230,21.05428532,180.88,180.75,1.5721]
[1736757254430,4.16717135,180.87,180.75,1.5721]
[1736757254633,2.7667,180.84,180.75,1.5721]
[1736757254936,3.3321,180.87,180.75,1.5721]
[1736757256637,0.83486444,180.86,180.75,1.5721]
[1736757256842,2.7678,180.77,180.71,85.576118]
[1736757257839,2.7675,180.79,180.72,2.7683]
[1736757258140,6.06,180.83,180.72,2.7683]
[1736757258733,6.06,180.83,180.71,21.05428532]
[1736757259032,6.06,180.83,180.73,2.7683]
[1736757260142,2.7675,180.79,180.73,2.7683]
[1736757260937,21.05428532,180.91,180.77,21.05428532]
[1736757261139,0.83507791,180.9,180.78,1.6769]
[1736757261341,1.6041,180.92,180.8,21.05428532]
[1736757261534,1.6041,180.92,180.83,21.05428532]
[1736757261938,2.7657,180.9,180.83,23.82088532]
[1736757262737,2.7655,180.92,180.84,2.7666]
[1736757263045,6.06,180.98,180.87,21.05428532]
[1736757263247,6.06,180.98,180.88,1.6147]
[1736757264043,21.05428532,181.0,180.88,1.6147]
[1736757264242,2.7652,180.94,180.88,1.6147]
[1736757264545,6.06,180.99,180.88,1.6147]
[1736757264740,2.765,180.95,180.88,1.6147]
[1736757265843,6.06,180.99,180.88,1.6147]
[1736757266144,2.7651,180.94,180.88,1.6147]
[1736757267544,2.7654,180.92,180.88,1.6147]
[1736757268944,2.7656,180.91,180.88,1.6147]
[1736757270448,2.7654,180.92,180.88,1.6147]
[1736757272240,2.7656,180.91,180.88,1.6147]
[1736757272645,6.06,180.99,180.88,1.6147]
[1736757273452,6.06,180.99,180.88,3.2159]
[1736757273752,21.05428532,181.0,180.88,3.2159]
[1736757273952,0.83628142,180.99,180.88,1.6147]
[1736757274248,0.83628142,180.99,180.77,21.05428532]
[1736757274249,21.89056674,180.99,180.77,21.05428532]
[1736757274551,21.05428532,180.88,180.77,1.7161]
[1736757274745,6.06,180.87,180.77,1.7161]
[1736757275556,2.7668,180.83,180.77,1.7161]
[1736757276154,6.06,180.87,180.78,2.7675]
[1736757276350,21.05428532,180.91,180.77,22.77038532]
[1736757276554,21.05428532,180.88,180.77,1.7161]
[1736757276752,2.7669,180.82,180.77,1.7161]
[1736757277049,21.05428532,180.88,180.77,1.7161]
[1736757277255,6.06,180.87,180.77,1.7161]
[1736757278255,2.7659,180.89,180.82,2.7668]
[1736757278451,2.7659,180.89,180.8,1.5568]
[1736757278851,27.11428532,180.94,180.81,2.7671]
[1736757278852,2.766,180.88,180.81,2.7671]
[1736757279055,27.11428532,180.94,180.8,1.5568]
[1736757279256,6.06,180.94,180.82,21.05428532]
[1736757279554,2.7658,180.9,180.83,2.7667]
[1736757279748,6.06,180.94,180.82,21.05428532]
[1736757280154,6.06,180.94,180.82,23.82118532]
[1736757280354,6.06,180.94,180.82,21.05428532]
[1736757280662,2.7649,180.95,180.88,2.766]
[1736757280855,6.06,180.96,180.85,21.05428532]
[1736757281056,6.06,180.96,180.86,3.3753]
[1736757282654,27.11428532,180.96,180.8,1.5568]
[1736757282851,27.11428532,180.96,180.82,1.6595]
[1736757283459,21.05428532,180.93,180.82,1.6595]
[1736757284156,6.06,180.92,180.82,1.6595]
[1736757285056,91.76976226,181.01,180.88,21.05428532]
[1736757285259,6.06,181.0,180.88,21.05428532]
[1736757285559,7.6325,181.01,180.89,1.5615]
[1736757285760,7.6325,181.01,180.9,1.6074]
[1736757286155,1.5725,181.01,180.9,1.6074]
[1736757286456,7.6325,181.01,180.9,1.6074]
[1736757289359,7.6325,181.01,180.88,21.05428532]
[1736757289560,7.6325,181.01,180.9,1.6769]
[1736757290158,53.4362469,181.04,180.91,21.05428532]
[1736757290364,1.6371,181.06,180.94,21.05428532]
[1736757290559,6.06,181.1,180.97,21.05428532]
[1736757290766,6.06,181.1,180.98,1.573]
[1736757290767,0.83653394,181.09,180.98,1.573]
[1736757291562,6.06,181.1,180.98,1.573]
[1736757291764,0.83660216,181.09,180.98,1.573]
[1736757294060,6.06,181.1,180.98,1.573]
[1736757294258,0.83657545,181.09,180.98,1.573]
[1736757294866,6.06,181.1,180.98,1.573]
[1736757295071,0.83621803,181.09,180.98,1.573]
[1736757295574,6.06,181.1,180.98,1.573]
[1736757297066,0.8361238,181.09,180.98,1.573]
[1736757297265,6.06,181.1,180.98,1.573]
[1736757298173,341.80357074,181.25,181.0,21.05428532]
[1736757298501,10.22463297,181.17,181.01,1.5682]
[1736757298664,21.05428532,181.15,181.01,1.5682]
[1736757298876,21.05428532,181.12,181.01,1.5682]
[1736757299282,21.05428532,181.12,180.99,4.324]
[1736757300682,21.05428532,181.12,181.0,2.7641]
[1736757301086,21.05428532,181.12,180.99,4.324]
[1736757301785,2.7633,181.06,180.99,4.324]
[1736757301988,21.05428532,181.12,180.99,1.5597]
[1736757302378,2.7631,181.07,180.99,1.5597]
[1736757302789,21.05428532,181.12,180.99,1.5597]
[1736757302987,2.7633,181.06,180.99,1.5597]
[1736757303587,2.7637,181.03,180.99,1.5597]
[1736757303790,21.05428532,181.12,180.99,1.5597]
[1736757304187,2.7635,181.05,180.99,1.5597]
[1736757304589,6.06,181.09,180.99,1.5597]
[1736757305178,2.7634,181.06,180.99,4.324]
[1736757305379,6.06,181.09,180.99,1.5597]
[1736757305787,2.7637,181.04,180.99,1.5597]
[1736757306091,6.06,181.09,180.99,1.5597]
[1736757306689,2.7634,181.06,181.0,2.7642]
[1736757307693,6.06,181.09,180.99,1.5597]
[1736757307893,21.05428532,181.15,181.0,21.05428532]
[1736757308193,6.06,181.15,181.0,21.05428532]
[1736757308392,21.05428532,181.15,181.01,1.5854]
[1736757308590,6.06,181.14,181.01,1.5854]
[1736757308792,21.05428532,181.1,180.98,1.573]
[1736757309093,21.05428532,181.07,180.98,1.573]
[1736757309284,3.324,181.09,180.98,1.573]
[1736757310292,3.324,181.09,181.02,2.7638]
[1736757310490,3.324,181.09,180.99,21.05428532]
[1736757311396,3.324,181.09,180.98,1.573]
[1736757312194,2.7635,181.05,180.99,2.7642]
[1736757312397,3.324,181.09,180.98,1.573]
[1736757312595,6.06,181.12,180.98,1.573]